[Event "Titled Tuesday Blitz May 30 Late 2023"]
[White "Goffredo_Fofi"]
[Black "Kovacevic, Radmila"]
[BlackFideId "933171"]
[WhiteElo "2460"]
[BlackElo "2194"]
[Result "0-1"]
[Round "05"]
[TimeControl "180+2"]
[Date "2023.05.31"]
[WhiteClock "0:00:06"]
[BlackClock "0:00:05"]

1. d4 {[%clk 0:03:00]}  e5 {[%clk 0:02:59]} 2. dxe5 {[%clk 0:03:00]}  Nc6 {[%clk 0:02:59]} 3. Nf3 {[%clk 0:03:00]}  Qe7 {[%clk 0:02:58]} 4. Bf4 {[%clk 0:03:00]}  Qb4+ {[%clk 0:02:58]} 5. Bd2 {[%clk 0:03:01]}  Qxb2 {[%clk 0:02:58]} 6. Nc3 {[%clk 0:03:02]}  Bb4 {[%clk 0:02:58]} 7. Rb1 {[%clk 0:03:00]}  Qxc3 {[%clk 0:02:58]} 8. Bxc3 {[%clk 0:02:59]}  Bxc3+ {[%clk 0:02:59]} 9. Nd2 {[%clk 0:02:59]}  Bxe5 {[%clk 0:02:59]} 10. e3 {[%clk 0:02:58]}  Nf6 {[%clk 0:02:59]} 11. c4 {[%clk 0:02:43]}  O-O {[%clk 0:02:58]} 12. Bd3 {[%clk 0:02:43]}  d5 {[%clk 0:02:56]} 13. O-O {[%clk 0:02:39]}  Rd8 {[%clk 0:02:53]} 14. Qc2 {[%clk 0:02:39]}  h6 {[%clk 0:02:44]} 15. h3 {[%clk 0:02:22]}  d4 {[%clk 0:02:16]} 16. e4 {[%clk 0:01:52]}  Bd6 {[%clk 0:01:53]} 17. f4 {[%clk 0:01:34]}  Nb4 {[%clk 0:01:36]} 18. Qb3 {[%clk 0:01:34]}  Nd7 {[%clk 0:01:26]} 19. Be2 {[%clk 0:01:30]}  a5 {[%clk 0:01:16]} 20. a3 {[%clk 0:01:14]}  d3 {[%clk 0:01:06]} 21. Bd1 {[%clk 0:00:52]}  Nc5 {[%clk 0:01:05]} 22. Qc3 {[%clk 0:00:42]}  Nc6 {[%clk 0:01:03]} 23. e5 {[%clk 0:00:36]}  Be7 {[%clk 0:01:02]} 24. Bf3 {[%clk 0:00:32]}  Nd4 {[%clk 0:00:56]} 25. Kh1 {[%clk 0:00:28]}  Ra7 {[%clk 0:00:49]} 26. Ne4 {[%clk 0:00:20]}  Bf5 {[%clk 0:00:42]} 27. Nxc5 {[%clk 0:00:18]}  Nxf3 {[%clk 0:00:31]} 28. Nxb7 {[%clk 0:00:11]}  Nd4 {[%clk 0:00:24]} 29. Nxd8 {[%clk 0:00:10]}  Ne2 {[%clk 0:00:17]} 30. Qd2 {[%clk 0:00:07]}  Ng3+ {[%clk 0:00:17]} 31. Kh2 {[%clk 0:00:06]}  Nxf1+ {[%clk 0:00:16]} 32. Rxf1 {[%clk 0:00:07]}  Bxd8 {[%clk 0:00:16]} 33. Qe3 {[%clk 0:00:07]}  Ra8 {[%clk 0:00:15]} 34. Rd1 {[%clk 0:00:07]}  Be7 {[%clk 0:00:13]} 35. g4 {[%clk 0:00:05]}  Bh7 {[%clk 0:00:08]} 36. f5 {[%clk 0:00:06]}  f6 {[%clk 0:00:04]} 37. Rxd3 {[%clk 0:00:04]}  fxe5 {[%clk 0:00:04]} 38. Qxe5 {[%clk 0:00:04]}  Re8 {[%clk 0:00:02]} 39. Kg2 {[%clk 0:00:02]}  Kf8 {[%clk 0:00:01]} 40. Qd5 {[%clk 0:00:02]}  Bg8 {[%clk 0:00:01]} 41. Qf3 {[%clk 0:00:02]}  Bxc4 {[%clk 0:00:01]} 42. Rd2 {[%clk 0:00:02]}  Bf7 {[%clk 0:00:02]} 43. Qf2 {[%clk 0:00:02]}  Bd6 {[%clk 0:00:03]} 44. Re2 {[%clk 0:00:02]}  Rd8 {[%clk 0:00:03]} 45. Rd2 {[%clk 0:00:02]}  Bd5+ {[%clk 0:00:03]} 46. Kg1 {[%clk 0:00:02]}  Bc6 {[%clk 0:00:03]} 47. Re2 {[%clk 0:00:02]}  Bd7 {[%clk 0:00:03]} 48. Kf1 {[%clk 0:00:02]}  Rb8 {[%clk 0:00:03]} 49. Kg2 {[%clk 0:00:03]}  Rb5 {[%clk 0:00:03]} 50. Kg1 {[%clk 0:00:03]}  Bc6 {[%clk 0:00:03]} 51. Re3 {[%clk 0:00:03]}  Rb1+ {[%clk 0:00:03]} 52. Re1 {[%clk 0:00:03]}  Rb3 {[%clk 0:00:03]} 53. Kf1 {[%clk 0:00:03]}  Rc3 {[%clk 0:00:03]} 54. Qe2 {[%clk 0:00:04]}  Rf3+ {[%clk 0:00:03]} 55. Qxf3 {[%clk 0:00:04]}  Bxf3 {[%clk 0:00:02]} 56. Re3 {[%clk 0:00:04]}  Bc6 {[%clk 0:00:03]} 57. Rc3 {[%clk 0:00:04]}  Bb5+ {[%clk 0:00:03]} 58. Kf2 {[%clk 0:00:05]}  Ke7 {[%clk 0:00:03]} 59. Re3+ {[%clk 0:00:05]}  Kd7 {[%clk 0:00:03]} 60. Rc3 {[%clk 0:00:04]}  Bc6 {[%clk 0:00:03]} 61. Ke3 {[%clk 0:00:05]}  Bd5 {[%clk 0:00:03]} 62. Rd3 {[%clk 0:00:05]}  Bc4 {[%clk 0:00:04]} 63. Rc3 {[%clk 0:00:05]}  Bb5 {[%clk 0:00:04]} 64. Rc2 {[%clk 0:00:05]}  c5 {[%clk 0:00:04]} 65. Rc3 {[%clk 0:00:05]}  Kc6 {[%clk 0:00:04]} 66. Kf3 {[%clk 0:00:05]}  Be5 {[%clk 0:00:04]} 67. Re3 {[%clk 0:00:05]}  Bd4 {[%clk 0:00:05]} 68. Re6+ {[%clk 0:00:05]}  Kd5 {[%clk 0:00:05]} 69. Rg6 {[%clk 0:00:04]}  Bc6 {[%clk 0:00:05]} 70. Ke2 {[%clk 0:00:05]}  Bb5+ {[%clk 0:00:04]} 71. Kd2 {[%clk 0:00:05]}  Bc4 {[%clk 0:00:04]} 72. h4 {[%clk 0:00:05]}  Ke4 {[%clk 0:00:04]} 73. f6 {[%clk 0:00:04]}  Bxf6 {[%clk 0:00:04]} 74. g5 {[%clk 0:00:04]}  hxg5 {[%clk 0:00:04]} 75. hxg5 {[%clk 0:00:04]}  Bd4 {[%clk 0:00:04]} 76. Rb6 {[%clk 0:00:03]}  Kf5 {[%clk 0:00:05]} 77. g6 {[%clk 0:00:03]}  Kg5 {[%clk 0:00:05]} 78. Rc6 {[%clk 0:00:04]}  Kh6 {[%clk 0:00:05]} 79. Rd6 {[%clk 0:00:04]}  Kg5 {[%clk 0:00:05]} 80. Rc6 {[%clk 0:00:04]}  Kf5 {[%clk 0:00:05]} 81. Kc2 {[%clk 0:00:05]}  Ke5 {[%clk 0:00:06]} 82. a4 {[%clk 0:00:05]}  Kd5 {[%clk 0:00:06]} 83. Ra6 {[%clk 0:00:06]}  Bxa6 {[%clk 0:00:05]} 0-1


[Site "https://www.chess.com"]

[Event "Titled Tuesday Blitz May 30 Late 2023"]
[White "LangesNasenhaar"]
[Black "Cardozo Munar, Carlos Eduardo"]
[BlackFideId "4409477"]
[WhiteElo "2456"]
[BlackElo "2067"]
[Result "0-1"]
[Round "05"]
[TimeControl "180+2"]
[Date "2023.05.31"]
[WhiteClock "0:00:01"]
[BlackClock "0:00:15"]

1. d4 {[%clk 0:03:00]}  d5 {[%clk 0:02:59]} 2. Nc3 {[%clk 0:03:01]}  Nf6 {[%clk 0:02:59]} 3. Bf4 {[%clk 0:03:01]}  Bf5 {[%clk 0:02:59]} 4. e3 {[%clk 0:03:01]}  e6 {[%clk 0:02:58]} 5. Nf3 {[%clk 0:03:01]}  Bd6 {[%clk 0:02:58]} 6. Ne5 {[%clk 0:03:01]}  O-O {[%clk 0:02:58]} 7. g4 {[%clk 0:03:01]}  Bg6 {[%clk 0:02:57]} 8. h4 {[%clk 0:02:59]}  h5 {[%clk 0:02:14]} 9. Nxg6 {[%clk 0:02:56]}  fxg6 {[%clk 0:02:15]} 10. Bxd6 {[%clk 0:02:50]}  cxd6 {[%clk 0:02:14]} 11. gxh5 {[%clk 0:02:48]}  gxh5 {[%clk 0:02:13]} 12. Be2 {[%clk 0:02:43]}  Nc6 {[%clk 0:02:09]} 13. Bxh5 {[%clk 0:02:36]}  Nxh5 {[%clk 0:02:10]} 14. Qxh5 {[%clk 0:02:35]}  Qf6 {[%clk 0:02:11]} 15. f4 {[%clk 0:02:28]}  Rac8 {[%clk 0:02:02]} 16. O-O-O {[%clk 0:02:22]}  Ne7 {[%clk 0:01:57]} 17. Rdg1 {[%clk 0:01:54]}  Nf5 {[%clk 0:01:54]} 18. Qf3 {[%clk 0:01:44]}  Rc7 {[%clk 0:01:47]} 19. h5 {[%clk 0:01:39]}  Rfc8 {[%clk 0:01:47]} 20. Rg6 {[%clk 0:01:37]}  Qf7 {[%clk 0:01:39]} 21. Kd2 {[%clk 0:01:16]}  Rxc3 {[%clk 0:01:31]} 22. bxc3 {[%clk 0:01:15]}  Qc7 {[%clk 0:01:31]} 23. Rd1 {[%clk 0:00:54]}  Qxc3+ {[%clk 0:01:31]} 24. Ke2 {[%clk 0:00:54]}  Qxc2+ {[%clk 0:01:26]} 25. Rd2 {[%clk 0:00:54]}  Qc4+ {[%clk 0:01:15]} 26. Kf2 {[%clk 0:00:51]}  Qb4 {[%clk 0:01:15]} 27. Re2 {[%clk 0:00:48]}  Kf7 {[%clk 0:01:01]} 28. Rg5 {[%clk 0:00:44]}  Qb1 {[%clk 0:00:51]} 29. h6 {[%clk 0:00:41]}  Nxh6 {[%clk 0:00:33]} 30. Qh5+ {[%clk 0:00:30]}  Kf8 {[%clk 0:00:33]} 31. Rg1 {[%clk 0:00:29]}  Qf5 {[%clk 0:00:32]} 32. Qh2 {[%clk 0:00:20]}  Rc2 {[%clk 0:00:31]} 33. Qg3 {[%clk 0:00:14]}  Rxe2+ {[%clk 0:00:29]} 34. Kxe2 {[%clk 0:00:15]}  Qc2+ {[%clk 0:00:29]} 35. Kf1 {[%clk 0:00:16]}  Nf5 {[%clk 0:00:30]} 36. Qf2 {[%clk 0:00:12]}  Qd3+ {[%clk 0:00:30]} 37. Kg2 {[%clk 0:00:11]}  Nxe3+ {[%clk 0:00:29]} 38. Kh1 {[%clk 0:00:12]}  Qxd4 {[%clk 0:00:24]} 39. Re1 {[%clk 0:00:07]}  Nf5 {[%clk 0:00:24]} 40. Qg2 {[%clk 0:00:03]}  Qf6 {[%clk 0:00:22]} 41. Kg1 {[%clk 0:00:02]}  b5 {[%clk 0:00:18]} 42. Rc1 {[%clk 0:00:02]}  Qd4+ {[%clk 0:00:16]} 43. Kh1 {[%clk 0:00:02]}  Qxf4 {[%clk 0:00:14]} 44. Rc8+ {[%clk 0:00:01]}  Kf7 {[%clk 0:00:14]} 45. Rc7+ {[%clk 0:00:01]}  Kf6 {[%clk 0:00:15]} 0-1


[Site "https://www.chess.com"]

[Event "Titled Tuesday Blitz May 30 Late 2023"]
[White "Petrovic, Aleksa"]
[Black "Osmonbekov, Talaibek"]
[WhiteFideId "967629"]
[BlackFideId "2017253"]
[WhiteElo "2309"]
[BlackElo "2135"]
[Result "0-1"]
[Round "05"]
[TimeControl "180+2"]
[Date "2023.05.31"]
[WhiteClock "0:00:46"]
[BlackClock "0:00:54"]

1. e4 {[%clk 0:02:56]}  c5 {[%clk 0:03:00]} 2. Nf3 {[%clk 0:02:55]}  d6 {[%clk 0:03:00]} 3. Bb5+ {[%clk 0:02:52]}  Nd7 {[%clk 0:02:59]} 4. O-O {[%clk 0:02:51]}  e5 {[%clk 0:02:59]} 5. c3 {[%clk 0:02:50]}  Nf6 {[%clk 0:03:00]} 6. d4 {[%clk 0:02:50]}  Qc7 {[%clk 0:02:58]} 7. Re1 {[%clk 0:02:43]}  Be7 {[%clk 0:02:57]} 8. Nbd2 {[%clk 0:02:40]}  O-O {[%clk 0:02:56]} 9. Nf1 {[%clk 0:02:40]}  a6 {[%clk 0:02:55]} 10. Ba4 {[%clk 0:02:40]}  b5 {[%clk 0:02:54]} 11. Bc2 {[%clk 0:02:40]}  cxd4 {[%clk 0:02:40]} 12. cxd4 {[%clk 0:02:40]}  Bb7 {[%clk 0:02:39]} 13. Ng3 {[%clk 0:02:39]}  Rac8 {[%clk 0:02:37]} 14. Bd3 {[%clk 0:02:34]}  exd4 {[%clk 0:02:26]} 15. Nf5 {[%clk 0:02:31]}  Nc5 {[%clk 0:02:19]} 16. N3xd4 {[%clk 0:02:23]}  Rfe8 {[%clk 0:01:56]} 17. Nxe7+ {[%clk 0:02:18]}  Rxe7 {[%clk 0:01:56]} 18. Nf5 {[%clk 0:02:16]}  Re6 {[%clk 0:01:56]} 19. Bg5 {[%clk 0:01:49]}  Nxd3 {[%clk 0:01:42]} 20. Bxf6 {[%clk 0:01:33]}  Nxe1 {[%clk 0:01:33]} 21. Qg4 {[%clk 0:01:32]}  g6 {[%clk 0:01:33]} 22. Qg5 {[%clk 0:01:27]}  Rxf6 {[%clk 0:01:20]} 23. Qxf6 {[%clk 0:01:12]}  gxf5 {[%clk 0:01:20]} 24. Rxe1 {[%clk 0:01:08]}  Qc1 {[%clk 0:01:01]} 25. Rf1 {[%clk 0:00:54]}  Bxe4 {[%clk 0:01:01]} 26. Qxd6 {[%clk 0:00:48]}  Qc6 {[%clk 0:00:54]} 27. Qg3+ {[%clk 0:00:46]}  Qg6 {[%clk 0:00:54]} 0-1


[Site "https://www.chess.com"]

[Event "Titled Tuesday Blitz May 30 Late 2023"]
[White "Clawitter, Craig"]
[Black "Mickiewicz, Piotr"]
[WhiteFideId "2023105"]
[BlackFideId "1114891"]
[WhiteElo "2216"]
[BlackElo "2246"]
[Result "0-1"]
[Round "05"]
[TimeControl "180+2"]
[Date "2023.05.31"]
[WhiteClock "0:00:01"]
[BlackClock "0:00:07"]

1. e4 {[%clk 0:03:00]}  c6 {[%clk 0:02:59]} 2. d4 {[%clk 0:02:59]}  d5 {[%clk 0:03:00]} 3. e5 {[%clk 0:02:59]}  Bf5 {[%clk 0:02:59]} 4. Nf3 {[%clk 0:02:59]}  e6 {[%clk 0:02:57]} 5. Be2 {[%clk 0:03:00]}  Ne7 {[%clk 0:02:55]} 6. Nbd2 {[%clk 0:02:59]}  h6 {[%clk 0:02:51]} 7. Nb3 {[%clk 0:02:59]}  Nd7 {[%clk 0:02:50]} 8. O-O {[%clk 0:02:58]}  a5 {[%clk 0:02:48]} 9. a4 {[%clk 0:02:57]}  b6 {[%clk 0:02:47]} 10. Be3 {[%clk 0:02:47]}  g5 {[%clk 0:02:44]} 11. Ne1 {[%clk 0:02:46]}  Bg6 {[%clk 0:02:32]} 12. Bd3 {[%clk 0:02:43]}  Nf5 {[%clk 0:02:30]} 13. Qe2 {[%clk 0:02:34]}  h5 {[%clk 0:02:16]} 14. f4 {[%clk 0:02:28]}  g4 {[%clk 0:02:15]} 15. c3 {[%clk 0:01:53]}  Be7 {[%clk 0:02:09]} 16. Nc2 {[%clk 0:01:50]}  Nf8 {[%clk 0:02:07]} 17. Bxf5 {[%clk 0:01:48]}  Bxf5 {[%clk 0:02:06]} 18. Bf2 {[%clk 0:01:41]}  h4 {[%clk 0:02:00]} 19. Ne3 {[%clk 0:01:40]}  Rg8 {[%clk 0:01:51]} 20. Be1 {[%clk 0:01:16]}  Qd7 {[%clk 0:01:45]} 21. c4 {[%clk 0:01:06]}  dxc4 {[%clk 0:01:40]} 22. Qxc4 {[%clk 0:01:07]}  Be4 {[%clk 0:01:28]} 23. Rc1 {[%clk 0:00:51]}  Rd8 {[%clk 0:01:01]} 24. Bc3 {[%clk 0:00:33]}  b5 {[%clk 0:00:50]} 25. Qe2 {[%clk 0:00:18]}  b4 {[%clk 0:00:45]} 26. Be1 {[%clk 0:00:17]}  h3 {[%clk 0:00:43]} 27. g3 {[%clk 0:00:17]}  Bf3 {[%clk 0:00:28]} 28. Rxf3 {[%clk 0:00:17]}  gxf3 {[%clk 0:00:29]} 29. Qxf3 {[%clk 0:00:18]}  Rc8 {[%clk 0:00:27]} 30. Bf2 {[%clk 0:00:15]}  Ng6 {[%clk 0:00:26]} 31. Nxa5 {[%clk 0:00:15]}  Nh4 {[%clk 0:00:21]} 32. Qh1 {[%clk 0:00:11]}  Ng2 {[%clk 0:00:20]} 33. Nxg2 {[%clk 0:00:11]}  hxg2 {[%clk 0:00:21]} 34. Qxg2 {[%clk 0:00:11]}  c5 {[%clk 0:00:21]} 35. Qb7 {[%clk 0:00:09]}  Qxb7 {[%clk 0:00:17]} 36. Nxb7 {[%clk 0:00:09]}  c4 {[%clk 0:00:18]} 37. a5 {[%clk 0:00:07]}  f5 {[%clk 0:00:16]} 38. a6 {[%clk 0:00:06]}  Kd7 {[%clk 0:00:15]} 39. a7 {[%clk 0:00:05]}  Rc7 {[%clk 0:00:13]} 40. Nc5+ {[%clk 0:00:01]}  Bxc5 {[%clk 0:00:12]} 41. dxc5 {[%clk 0:00:02]}  Kc6 {[%clk 0:00:06]} 42. Rxc4 {[%clk 0:00:03]}  Rb7 {[%clk 0:00:07]} 43. Rd4 {[%clk 0:00:01]}  Ra8 {[%clk 0:00:07]} 44. Rd6+ {[%clk 0:00:01]}  Kb5 {[%clk 0:00:07]} 0-1


[Site "https://www.chess.com"]

[Event "Titled Tuesday Blitz May 30 Late 2023"]
[White "Ansh M Shah"]
[Black "Gardezi, Arsal"]
[WhiteFideId "25033379"]
[BlackFideId "30949521"]
[WhiteElo "2084"]
[BlackElo "1906"]
[Result "1-0"]
[Round "05"]
[TimeControl "180+2"]
[Date "2023.05.31"]
[WhiteClock "0:00:29"]
[BlackClock "0:01:08"]

1. d4 {[%clk 0:03:00]}  d5 {[%clk 0:02:59]} 2. c4 {[%clk 0:03:01]}  e6 {[%clk 0:02:58]} 3. g3 {[%clk 0:03:01]}  Nf6 {[%clk 0:02:52]} 4. Bg2 {[%clk 0:03:02]}  Be7 {[%clk 0:02:48]} 5. Nf3 {[%clk 0:03:01]}  c6 {[%clk 0:02:46]} 6. O-O {[%clk 0:02:59]}  Nbd7 {[%clk 0:02:46]} 7. Nbd2 {[%clk 0:02:55]}  O-O {[%clk 0:02:46]} 8. Qc2 {[%clk 0:02:49]}  Re8 {[%clk 0:02:43]} 9. e4 {[%clk 0:02:39]}  dxe4 {[%clk 0:02:42]} 10. Nxe4 {[%clk 0:02:40]}  Nxe4 {[%clk 0:02:42]} 11. Qxe4 {[%clk 0:02:41]}  Nf6 {[%clk 0:02:41]} 12. Qe2 {[%clk 0:02:41]}  Bd6 {[%clk 0:02:41]} 13. Rd1 {[%clk 0:02:40]}  Qc7 {[%clk 0:02:41]} 14. Bg5 {[%clk 0:02:36]}  Nd7 {[%clk 0:02:36]} 15. Qd2 {[%clk 0:02:31]}  Be7 {[%clk 0:02:29]} 16. Bxe7 {[%clk 0:02:27]}  Rxe7 {[%clk 0:02:29]} 17. Rac1 {[%clk 0:02:26]}  Nf6 {[%clk 0:02:12]} 18. Ne5 {[%clk 0:02:22]}  Qb6 {[%clk 0:02:09]} 19. c5 {[%clk 0:02:05]}  Qc7 {[%clk 0:02:06]} 20. Nc4 {[%clk 0:02:04]}  b5 {[%clk 0:01:58]} 21. cxb6 {[%clk 0:01:54]}  axb6 {[%clk 0:01:57]} 22. Ne5 {[%clk 0:01:47]}  Rxa2 {[%clk 0:01:51]} 23. Nxc6 {[%clk 0:01:47]}  Re8 {[%clk 0:01:51]} 24. Nb4 {[%clk 0:01:43]}  Qa7 {[%clk 0:01:50]} 25. Nxa2 {[%clk 0:01:40]}  Qxa2 {[%clk 0:01:51]} 26. Qc3 {[%clk 0:01:31]}  h6 {[%clk 0:01:45]} 27. Qa3 {[%clk 0:01:29]}  Qxa3 {[%clk 0:01:43]} 28. bxa3 {[%clk 0:01:30]}  Ba6 {[%clk 0:01:43]} 29. Rc6 {[%clk 0:01:28]}  Bb7 {[%clk 0:01:42]} 30. Rxb6 {[%clk 0:01:27]}  Bxg2 {[%clk 0:01:42]} 31. Kxg2 {[%clk 0:01:28]}  Nd5 {[%clk 0:01:43]} 32. Rb7 {[%clk 0:01:23]}  Ra8 {[%clk 0:01:42]} 33. Ra1 {[%clk 0:01:23]}  Ra4 {[%clk 0:01:41]} 34. Rb3 {[%clk 0:01:18]}  Kf8 {[%clk 0:01:30]} 35. Rc1 {[%clk 0:00:53]}  Rxd4 {[%clk 0:01:28]} 36. Rc8+ {[%clk 0:00:52]}  Ke7 {[%clk 0:01:28]} 37. Rb7+ {[%clk 0:00:53]}  Kf6 {[%clk 0:01:26]} 38. Rf8 {[%clk 0:00:53]}  Ne7 {[%clk 0:01:23]} 39. Ra7 {[%clk 0:00:51]}  Rd2 {[%clk 0:01:17]} 40. a4 {[%clk 0:00:50]}  Ra2 {[%clk 0:01:16]} 41. a5 {[%clk 0:00:49]}  Nc6 {[%clk 0:01:15]} 42. Rfxf7+ {[%clk 0:00:42]}  Ke5 {[%clk 0:01:15]} 43. Rac7 {[%clk 0:00:32]}  Nxa5 {[%clk 0:01:13]} 44. Ra7 {[%clk 0:00:32]}  Ra3 {[%clk 0:01:08]} 45. Rxg7 {[%clk 0:00:29]} 1-0


[Site "https://www.chess.com"]

[Event "Titled Tuesday Blitz May 30 Late 2023"]
[White "ritanovikova"]
[Black "Carrasco Miranda, Andres"]
[BlackFideId "3405990"]
[WhiteElo "2175"]
[BlackElo "2183"]
[Result "0-1"]
[Round "05"]
[TimeControl "180+2"]
[Date "2023.05.31"]
[WhiteClock "0:00:16"]
[BlackClock "0:00:09"]

1. e4 {[%clk 0:03:00]}  e5 {[%clk 0:02:54]} 2. Nf3 {[%clk 0:02:59]}  Nc6 {[%clk 0:02:54]} 3. Bc4 {[%clk 0:02:59]}  Bc5 {[%clk 0:02:53]} 4. c3 {[%clk 0:02:59]}  Nf6 {[%clk 0:02:53]} 5. d4 {[%clk 0:02:59]}  exd4 {[%clk 0:02:53]} 6. cxd4 {[%clk 0:03:00]}  Bb4+ {[%clk 0:02:53]} 7. Bd2 {[%clk 0:03:01]}  Bxd2+ {[%clk 0:02:53]} 8. Nbxd2 {[%clk 0:03:02]}  d5 {[%clk 0:02:52]} 9. exd5 {[%clk 0:03:02]}  Nxd5 {[%clk 0:02:53]} 10. O-O {[%clk 0:03:02]}  O-O {[%clk 0:02:53]} 11. Rc1 {[%clk 0:03:03]}  Be6 {[%clk 0:02:50]} 12. Ne4 {[%clk 0:02:58]}  Nf4 {[%clk 0:02:47]} 13. Bxe6 {[%clk 0:02:54]}  fxe6 {[%clk 0:02:43]} 14. g3 {[%clk 0:02:20]}  Qd5 {[%clk 0:02:13]} 15. Nc3 {[%clk 0:01:45]}  Nh3+ {[%clk 0:00:58]} 16. Kg2 {[%clk 0:01:44]}  Qf5 {[%clk 0:00:46]} 17. Nh4 {[%clk 0:01:40]}  Nxf2 {[%clk 0:00:46]} 18. Qe2 {[%clk 0:01:17]}  Qh3+ {[%clk 0:00:45]} 19. Kg1 {[%clk 0:01:14]}  Nxd4 {[%clk 0:00:43]} 20. Qe3 {[%clk 0:01:01]}  Ng4 {[%clk 0:00:40]} 21. Qd2 {[%clk 0:00:45]}  Rad8 {[%clk 0:00:39]} 22. Qg2 {[%clk 0:00:45]}  Rxf1+ {[%clk 0:00:28]} 23. Rxf1 {[%clk 0:00:44]}  Qxg2+ {[%clk 0:00:26]} 24. Kxg2 {[%clk 0:00:39]}  Ne3+ {[%clk 0:00:26]} 25. Kg1 {[%clk 0:00:38]}  Nxf1 {[%clk 0:00:26]} 26. Kxf1 {[%clk 0:00:39]}  Nf5 {[%clk 0:00:25]} 27. Nf3 {[%clk 0:00:38]}  c6 {[%clk 0:00:23]} 28. Ne4 {[%clk 0:00:37]}  h6 {[%clk 0:00:22]} 29. Nc5 {[%clk 0:00:37]}  Rd1+ {[%clk 0:00:17]} 30. Ke2 {[%clk 0:00:36]}  Rd6 {[%clk 0:00:17]} 31. Nxb7 {[%clk 0:00:34]}  Rd5 {[%clk 0:00:17]} 32. b4 {[%clk 0:00:33]}  Nd4+ {[%clk 0:00:15]} 33. Nxd4 {[%clk 0:00:31]}  Rxd4 {[%clk 0:00:15]} 34. a3 {[%clk 0:00:31]}  e5 {[%clk 0:00:11]} 35. Nc5 {[%clk 0:00:31]}  Kf7 {[%clk 0:00:10]} 36. Nd3 {[%clk 0:00:28]}  Rxd3 {[%clk 0:00:09]} 37. Kxd3 {[%clk 0:00:28]}  Ke6 {[%clk 0:00:10]} 38. Ke4 {[%clk 0:00:29]}  g6 {[%clk 0:00:09]} 39. a4 {[%clk 0:00:29]}  a6 {[%clk 0:00:09]} 40. g4 {[%clk 0:00:28]}  h5 {[%clk 0:00:08]} 41. g5 {[%clk 0:00:27]}  Kd6 {[%clk 0:00:07]} 42. Kd3 {[%clk 0:00:18]}  Kd5 {[%clk 0:00:07]} 43. h4 {[%clk 0:00:18]}  e4+ {[%clk 0:00:07]} 44. Ke3 {[%clk 0:00:18]}  Ke5 {[%clk 0:00:07]} 45. a5 {[%clk 0:00:14]}  Kd5 {[%clk 0:00:06]} 46. Kf4 {[%clk 0:00:13]}  Kd4 {[%clk 0:00:06]} 47. b5 {[%clk 0:00:10]}  cxb5 {[%clk 0:00:06]} 48. Kg3 {[%clk 0:00:09]}  Kd3 {[%clk 0:00:06]} 49. Kh2 {[%clk 0:00:09]}  e3 {[%clk 0:00:06]} 50. Kh3 {[%clk 0:00:10]}  e2 {[%clk 0:00:07]} 51. Kg3 {[%clk 0:00:11]}  e1=Q+ {[%clk 0:00:07]} 52. Kf4 {[%clk 0:00:12]}  Qe4+ {[%clk 0:00:07]} 53. Kg3 {[%clk 0:00:12]}  Qg4+ {[%clk 0:00:07]} 54. Kf2 {[%clk 0:00:12]}  Qxh4+ {[%clk 0:00:08]} 55. Kf3 {[%clk 0:00:13]}  Qxg5 {[%clk 0:00:08]} 56. Kf2 {[%clk 0:00:13]}  Qe3+ {[%clk 0:00:08]} 57. Kg2 {[%clk 0:00:13]}  Qe4+ {[%clk 0:00:08]} 58. Kh3 {[%clk 0:00:13]}  b4 {[%clk 0:00:08]} 59. Kh2 {[%clk 0:00:13]}  b3 {[%clk 0:00:09]} 60. Kh3 {[%clk 0:00:14]}  b2 {[%clk 0:00:09]} 61. Kh2 {[%clk 0:00:15]}  b1=Q {[%clk 0:00:08]} 62. Kg3 {[%clk 0:00:16]}  Qg1+ {[%clk 0:00:08]} 63. Kh3 {[%clk 0:00:16]}  Qeg4# {[%clk 0:00:09]} 0-1


[Site "https://www.chess.com"]

[Event "Titled Tuesday Blitz May 30 Late 2023"]
[White "rionelG"]
[Black "Urbina Perez, Juan Antonio"]
[BlackFideId "2217368"]
[WhiteElo "2171"]
[BlackElo "2197"]
[Result "1-0"]
[Round "05"]
[TimeControl "180+2"]
[Date "2023.05.31"]
[WhiteClock "0:00:12"]
[BlackClock "0:00:29"]

1. e4 {[%clk 0:02:51]}  e6 {[%clk 0:02:59]} 2. d3 {[%clk 0:02:50]}  d5 {[%clk 0:02:58]} 3. Nd2 {[%clk 0:02:51]}  Nf6 {[%clk 0:02:57]} 4. g3 {[%clk 0:02:51]}  dxe4 {[%clk 0:02:55]} 5. dxe4 {[%clk 0:02:50]}  b6 {[%clk 0:02:55]} 6. Bg2 {[%clk 0:02:50]}  Ba6 {[%clk 0:02:35]} 7. e5 {[%clk 0:02:29]}  Nd5 {[%clk 0:02:34]} 8. c4 {[%clk 0:02:28]}  Nb4 {[%clk 0:02:29]} 9. Bxa8 {[%clk 0:02:18]}  Nd3+ {[%clk 0:02:18]} 10. Kf1 {[%clk 0:01:53]}  c6 {[%clk 0:02:15]} 11. Qa4 {[%clk 0:01:12]}  Qc7 {[%clk 0:01:58]} 12. Ngf3 {[%clk 0:00:48]}  Bc5 {[%clk 0:01:55]} 13. Ne4 {[%clk 0:00:43]}  Be7 {[%clk 0:01:44]} 14. Qb3 {[%clk 0:00:38]}  Nxe5 {[%clk 0:01:38]} 15. Bf4 {[%clk 0:00:33]}  f6 {[%clk 0:01:37]} 16. Bxe5 {[%clk 0:00:23]}  fxe5 {[%clk 0:01:38]} 17. Kg2 {[%clk 0:00:24]}  O-O {[%clk 0:01:39]} 18. Rhe1 {[%clk 0:00:23]}  Nd7 {[%clk 0:01:37]} 19. c5 {[%clk 0:00:17]}  Rxa8 {[%clk 0:01:18]} 20. Qxe6+ {[%clk 0:00:17]}  Kf8 {[%clk 0:00:53]} 21. Nfg5 {[%clk 0:00:16]}  Ke8 {[%clk 0:00:53]} 22. Rad1 {[%clk 0:00:15]}  bxc5 {[%clk 0:00:33]} 23. Qf7+ {[%clk 0:00:15]}  Kd8 {[%clk 0:00:33]} 24. Ne6+ {[%clk 0:00:16]}  Kc8 {[%clk 0:00:32]} 25. Nxc7 {[%clk 0:00:17]}  Kxc7 {[%clk 0:00:33]} 26. Qxe7 {[%clk 0:00:17]}  Bc8 {[%clk 0:00:33]} 27. Nxc5 {[%clk 0:00:15]}  Rb8 {[%clk 0:00:32]} 28. Nxd7 {[%clk 0:00:15]}  Bxd7 {[%clk 0:00:33]} 29. Rxd7+ {[%clk 0:00:15]}  Kb6 {[%clk 0:00:34]} 30. Qxe5 {[%clk 0:00:15]}  Rf8 {[%clk 0:00:32]} 31. b4 {[%clk 0:00:12]}  g5 {[%clk 0:00:29]} 32. Qa5# {[%clk 0:00:12]} 1-0


[Site "https://www.chess.com"]